Workbook

Sheet Inputs
B1: BSUoS Report:
B3: Input Dates | C3: Date
B4: Report Date | C4: 2018-06-01
B5: Input Data From | C5: 2018-05-02
B6: Input Data To | C6: 2018-06-05
B8: Step | C8: Macro | D8: Complete?
B9: Set-up spreadsheet | D9: Y
B10: Import Demand Data | D10: Y
B11: Import Cost Data | D11: Y
B12: Export Report | D12: Y
B13: Save & close | D13: Y
B15: Date | C15: Initial Forecast | D15: Indicative Outturn
B16: =Input_Data_To -> 2018-06-05 | C16: =VLOOKUP(B16,Data!A2:L2863,6,) -> 0.438159876 | D16: =IF(B16>=TODAY(),"",ROUND(VLOOKUP($B16,Data!$A:$K,11),3)) -> 
B17: =IF(B16-1<Input_Data_From,"",B16-1) -> 2018-06-04 | C17: =VLOOKUP(B17,Data!A3:L2864,6,) -> 0.4382193339 | D17: =IF(B17>=TODAY(),"",ROUND(VLOOKUP($B17,Data!$A:$K,11),3)) -> 
B18: 2018-06-03 | C18: =VLOOKUP(B18,Data!A4:L2865,6,) -> 0.5073247032 | D18: =IF(B18>=TODAY(),"",ROUND(VLOOKUP($B18,Data!$A:$K,11),3)) -> 
B19: 2018-06-02 | C19: =VLOOKUP(B19,Data!A5:L2866,6,) -> 0.5090641171 | D19: =IF(B19>=TODAY(),"",ROUND(VLOOKUP($B19,Data!$A:$K,11),3)) -> 
B20: 2018-06-01 | C20: =VLOOKUP(B20,Data!A6:L2867,6,) -> 0.443420923 | D20: =IF(B20>=TODAY(),"",ROUND(VLOOKUP($B20,Data!$A:$K,11),3)) -> 
B21: 2018-05-31 | C21: =VLOOKUP(B21,Data!A7:L2868,6,) -> 0.4243146126 | D21: =IF(B21>=TODAY(),"",ROUND(VLOOKUP($B21,Data!$A:$K,11),3)) -> 0.429
B22: 2018-05-30 | C22: =VLOOKUP(B22,Data!A8:L2869,6,) -> 0.4243152186 | D22: =IF(B22>=TODAY(),"",ROUND(VLOOKUP($B22,Data!$A:$K,11),3)) -> 0.427
B23: 2018-05-29 | C23: =VLOOKUP(B23,Data!A9:L2870,6,) -> 0.4243158247 | D23: =IF(B23>=TODAY(),"",ROUND(VLOOKUP($B23,Data!$A:$K,11),3)) -> 0.453
B24: 2018-05-28 | C24: =VLOOKUP(B24,Data!A10:L2871,6,) -> 0.4243164307 | D24: =IF(B24>=TODAY(),"",ROUND(VLOOKUP($B24,Data!$A:$K,11),3)) -> 0.517
B25: 2018-05-27 | C25: =VLOOKUP(B25,Data!A11:L2872,6,) -> 0.4243170367 | D25: =IF(B25>=TODAY(),"",ROUND(VLOOKUP($B25,Data!$A:$K,11),3)) -> 0.558
B26: 2018-05-26 | C26: =VLOOKUP(B26,Data!A12:L2873,6,) -> 0.4243176427 | D26: =IF(B26>=TODAY(),"",ROUND(VLOOKUP($B26,Data!$A:$K,11),3)) -> 0.546
B27: 2018-05-25 | C27: =VLOOKUP(B27,Data!A13:L2874,6,) -> 0.4243182487 | D27: =IF(B27>=TODAY(),"",ROUND(VLOOKUP($B27,Data!$A:$K,11),3)) -> 0.439
B28: 2018-05-24 | C28: =VLOOKUP(B28,Data!A14:L2875,6,) -> 0.4446959049 | D28: =IF(B28>=TODAY(),"",ROUND(VLOOKUP($B28,Data!$A:$K,11),3)) -> 0.436
B29: 2018-05-23 | C29: =VLOOKUP(B29,Data!A15:L2876,6,) -> 0.4545927485 | D29: =IF(B29>=TODAY(),"",ROUND(VLOOKUP($B29,Data!$A:$K,11),3)) -> 0.463
B30: 2018-05-22 | C30: =VLOOKUP(B30,Data!A16:L2877,6,) -> 0.4585683284 | D30: =IF(B30>=TODAY(),"",ROUND(VLOOKUP($B30,Data!$A:$K,11),3)) -> 0.476
B31: 2018-05-21 | C31: =VLOOKUP(B31,Data!A17:L2878,6,) -> 0.4622275603 | D31: =IF(B31>=TODAY(),"",ROUND(VLOOKUP($B31,Data!$A:$K,11),3)) -> 0.454
B32: 2018-05-20 | C32: =VLOOKUP(B32,Data!A18:L2879,6,) -> 0.5548738694 | D32: =IF(B32>=TODAY(),"",ROUND(VLOOKUP($B32,Data!$A:$K,11),3)) -> 0.555
B33: 2018-05-19 | C33: =VLOOKUP(B33,Data!A19:L2880,6,) -> 0.5265172593 | D33: =IF(B33>=TODAY(),"",ROUND(VLOOKUP($B33,Data!$A:$K,11),3)) -> 0.53
B34: 2018-05-18 | C34: =VLOOKUP(B34,Data!A20:L2881,6,) -> 0.4447877789 | D34: =IF(B34>=TODAY(),"",ROUND(VLOOKUP($B34,Data!$A:$K,11),3)) -> 0.449
B35: 2018-05-17 | C35: =VLOOKUP(B35,Data!A21:L2882,6,) -> 0.4571254487 | D35: =IF(B35>=TODAY(),"",ROUND(VLOOKUP($B35,Data!$A:$K,11),3)) -> 0.449
B36: 2018-05-16 | C36: =VLOOKUP(B36,Data!A22:L2883,6,) -> 0.4354823579 | D36: =IF(B36>=TODAY(),"",ROUND(VLOOKUP($B36,Data!$A:$K,11),3)) -> 0.44
B37: 2018-05-15 | C37: =VLOOKUP(B37,Data!A23:L2884,6,) -> 0.4243243089 | D37: =IF(B37>=TODAY(),"",ROUND(VLOOKUP($B37,Data!$A:$K,11),3)) -> 0.453
B38: 2018-05-14 | C38: =VLOOKUP(B38,Data!A24:L2885,6,) -> 0.4243249149 | D38: =IF(B38>=TODAY(),"",ROUND(VLOOKUP($B38,Data!$A:$K,11),3)) -> 0.46
B39: 2018-05-13 | C39: =VLOOKUP(B39,Data!A25:L2886,6,) -> 0.4243255209 | D39: =IF(B39>=TODAY(),"",ROUND(VLOOKUP($B39,Data!$A:$K,11),3)) -> 0.512
B40: 2018-05-12 | C40: =VLOOKUP(B40,Data!A26:L2887,6,) -> 0.424326127 | D40: =IF(B40>=TODAY(),"",ROUND(VLOOKUP($B40,Data!$A:$K,11),3)) -> 0.473
B41: 2018-05-11 | C41: =VLOOKUP(B41,Data!A27:L2888,6,) -> 0.424326733 | D41: =IF(B41>=TODAY(),"",ROUND(VLOOKUP($B41,Data!$A:$K,11),3)) -> 0.464
B42: 2018-05-10 | C42: =VLOOKUP(B42,Data!A28:L2889,6,) -> 0.424327339 | D42: =IF(B42>=TODAY(),"",ROUND(VLOOKUP($B42,Data!$A:$K,11),3)) -> 0.456
B43: 2018-05-09 | C43: =VLOOKUP(B43,Data!A29:L2890,6,) -> 0.4243279451 | D43: =IF(B43>=TODAY(),"",ROUND(VLOOKUP($B43,Data!$A:$K,11),3)) -> 0.446
B44: 2018-05-08 | C44: =VLOOKUP(B44,Data!A30:L2891,6,) -> 0.4243285511 | D44: =IF(B44>=TODAY(),"",ROUND(VLOOKUP($B44,Data!$A:$K,11),3)) -> 0.448
B45: 2018-05-07 | C45: =VLOOKUP(B45,Data!A31:L2892,6,) -> 0.4243291572 | D45: =IF(B45>=TODAY(),"",ROUND(VLOOKUP($B45,Data!$A:$K,11),3)) -> 0.517
B46: 2018-05-06 | C46: =VLOOKUP(B46,Data!A32:L2893,6,) -> 0.4243297632 | D46: 5.022
B47: 2018-05-05 | C47: =VLOOKUP(B47,Data!A33:L2894,6,) -> 0.4243303693 | D47: =IF(B47>=TODAY(),"",ROUND(VLOOKUP($B47,Data!$A:$K,11),3)) -> 0.518
B48: 2018-05-04 | C48: =VLOOKUP(B48,Data!A34:L2895,6,) -> 0.4243309753 | D48: =IF(B48>=TODAY(),"",ROUND(VLOOKUP($B48,Data!$A:$K,11),3)) -> 0.425
B49: 2018-05-03 | C49: =VLOOKUP(B49,Data!A35:L2896,6,) -> 0.4140495326 | D49: =IF(B49>=TODAY(),"",ROUND(VLOOKUP($B49,Data!$A:$K,11),3)) -> 0.419
B50: 2018-05-02 | C50: =VLOOKUP(B50,Data!A36:L2897,6,) -> 0.4039022586 | D50: =IF(B50>=TODAY(),"",ROUND(VLOOKUP($B50,Data!$A:$K,11),3)) -> 0.417

Sheet Report
B2: Daily BSUoS Forecast | F2: nationalgrid
F6: =Report_Date -> 2018-06-01
B9: This report contains National Grid's day-ahead forecasts of per-MWh BSUoS costs (Balancing Services Use of System, as defined in the CUSC). A forecast at monthly resolution reaching to the end of the current financial year can be found in the MBSS (Monthly Balancing Services Statement). Model adjusted 23/08/17.
B11: Date | C11: Initial Forecast
B12: =Input_Data_To -> 2018-06-05 | C12: 1.08
B13: =IF(B12-1<Input_Data_From,"",B12-1) -> 2018-06-04 | C13: 0.952
B14: 2018-06-03 | C14: 1.028
B15: 2018-06-02 | C15: 1.048
B16: 2018-06-01 | C16: 2.048
B17: 2018-05-31 | C17: 0.889
B18: 2018-05-30 | C18: 1.09
B19: 2018-05-29 | C19: 1.231
B20: 2018-05-28 | C20: 0.817
B21: 2018-05-27 | C21: 0.789
B22: 2018-05-26 | C22: 0.681
B23: 2018-05-25 | C23: 0.596
B24: 2018-05-24 | C24: 0.889
B25: 2018-05-23 | C25: 0.546
B26: 2018-05-22 | C26: 0.793
B27: 2018-05-21 | C27: 1.177
B28: 2018-05-20 | C28: 1.21
B29: 2018-05-19 | C29: 0.991
B30: 2018-05-18 | C30: 0.947
B31: 2018-05-17 | C31: 1.103
B32: 2018-05-16 | C32: 0.681
B33: 2018-05-15 | C33: 1.21
B34: 2018-05-14 | C34: 1.688
B35: 2018-05-13 | C35: 1.81
B36: 2018-05-12 | C36: 1.995
B37: 2018-05-11 | C37: 1.281
B38: 2018-05-10 | C38: 1.203
B39: 2018-05-09 | C39: 0.903
B40: 2018-05-08 | C40: 1.338
B41: 2018-05-07 | C41: 1.917
B42: 2018-05-06 | C42: 2.053
B43: 2018-05-05 | C43: 2.274
B44: 2018-05-04 | C44: 1.588
B45: 2018-05-03 | C45: 1.574
B46: 2018-05-02 | C46: 4.339
B48: CUSC | C48: Indicative Outturn can now be found on the website under:
B49: MBSS | C49: Daily Balancing Costs (BSUoS)
B51: Disclaimer
B52: This forecast is published without prejudice and whilst every effort has been made to ensure the accuracy of the information, it is subject to several estimations and forecasts and may not bear relation to either the indicative or actual tariffs National Grid will publish at later dates.

Sheet Data
A1: BSUoS data: | B1: Forecast Demand | C1: Forecast BSUoS_ext | D1: Forecast BSUoS_int | E1: Forecast BSIS | F1: Forecast BSUoS | G1: Outturn Demand | H1: Outturn BSUoS_ext | I1: Outturn BSUoS_int | J1: Outturn BSIS | K1: Outturn BSUoS
A2: 2015-04-01 | B2: 858337.75 | C2: 1.96 | D2: =internal_BSUoS_cost_per_year/days_per_year -> 0.4493150685 | E2: =forecast_BSIS_profit_per_year/days_per_year -> 0.02191780822 | F2: =BSUoS_per_SP(B2,C2,D2,E2) -> 1.41622531 | G2: 833176.5 | H2: 4.24 | I2: =internal_BSUoS_cost_per_year/days_per_year -> 0.4493150685 | J2: =forecast_BSIS_profit_per_year/days_per_year -> 0.02191780822 | K2: =BSUoS_per_SP(G2,H2,I2,J2) -> 2.827253786
A3: 2015-04-02 | B3: 881968.4167 | C3: 1.97 | D3: 0.4493150685 | E3: 0.02191780822 | F3: =BSUoS_per_SP(B3,C3,D3,E3) -> 1.383950438 | G3: 846200 | H3: 0.74 | I3: 0.4493150685 | J3: 0.02191780822 | K3: =BSUoS_per_SP(G3,H3,I3,J3) -> 0.7156700544
A4: 2015-04-03 | B4: 781351.4167 | C4: 1.39 | D4: 0.4493150685 | E4: 0.02191780822 | F4: 1.191014026 | G4: 778983 | H4: 2.61 | I4: 0.4493150685 | J4: 0.02191780822 | K4: 1.977706831
A5: 2015-04-04 | B5: 735119.5833 | C5: 1.65 | D5: 0.4493150685 | E5: 0.02191780822 | F5: 1.442757645 | G5: 735810 | H5: 1.92 | I5: 0.4493150685 | J5: 0.02191780822 | K5: 1.624875987
A6: 2015-04-05 | B6: 710810.25 | C6: 1.89 | D6: 0.4493150685 | E6: 0.02191780822 | F6: 1.660922047 | G6: 692162 | H6: 1.44 | I6: 0.4493150685 | J6: 0.02191780822 | K6: 1.380601651
A7: 2015-04-06 | B7: 728617.6667 | C7: 1.7 | D7: 0.4493150685 | E7: 0.02191780822 | F7: 1.489943976 | G7: 691588.5 | H7: 1.13 | I7: 0.4493150685 | J7: 0.02191780822 | K7: 1.157625638
A8: 2015-04-07 | B8: 834689.5833 | C8: 1.64 | D8: 0.4493150685 | E8: 0.02191780822 | F8: 1.264661132 | G8: 772717 | H8: 0.51 | I8: 0.4493150685 | J8: 0.02191780822 | K8: 0.6349025581
A9: 2015-04-08 | B9: 847339.1667 | C9: 1.64 | D9: 0.4493150685 | E9: 0.02191780822 | F9: 1.245782385 | G9: 780483 | H9: 0.34 | I9: 0.4493150685 | J9: 0.02191780822 | K9: 0.5196781993
A10: 2015-04-09 | B10: 852126.8333 | C10: 1.58 | D10: 0.4493150685 | E10: 0.02191780822 | F10: =BSUoS_per_SP(B10,C10,D10,E10) -> 1.203576462 | G10: 771303 | H10: 0.46 | I10: 0.4493150685 | J10: 0.02191780822 | K10: 0.603653817
A11: 2015-04-10 | B11: 838750.25 | C11: 1.92 | D11: 0.4493150685 | E11: 0.02191780822 | F11: 1.425454545 | G11: 742273.5 | H11: 1.1 | I11: 0.4493150685 | J11: 0.02191780822 | K11: 1.058369281
A12: 2015-04-11 | B12: 735119.5833 | C12: 1.49 | D12: 0.4493150685 | E12: 0.02191780822 | F12: 1.333931875 | G12: 639246 | H12: 3.6 | I12: 0.4493150685 | J12: 0.02191780822 | K12: 3.184376594
A13: 2015-04-12 | B13: 710810.25 | C13: 1.57 | D13: 0.4493150685 | E13: 0.02191780822 | F13: 1.435826733 | G13: 657395.5 | H13: 3.97 | I13: 0.4493150685 | J13: 0.02191780822 | K13: 3.377872698
A14: 2015-04-13 | B14: 728617.6667 | C14: 1.14 | D14: 0.4493150685 | E14: 0.02191780822 | F14: 1.105654815 | G14: 788885.5 | H14: 1.73 | I14: 0.4493150685 | J14: 0.02191780822 | K14: 1.395131869
A15: 2015-04-14 | B15: 834689.5833 | C15: 1.67 | D15: 0.4493150685 | E15: 0.02191780822 | F15: 1.282631875 | G15: 755408 | H15: 2.27 | I15: 0.4493150685 | J15: 0.02191780822 | K15: 1.81438375
A16: 2015-04-15 | B16: 847339.1667 | C16: 1.99 | D16: 0.4493150685 | E16: 0.02191780822 | F16: 1.452311295 | G16: 765546.5 | H16: 1.51 | I16: 0.4493150685 | J16: 0.02191780822 | K16: 1.293978415
A17: 2015-04-16 | B17: 852126.8333 | C17: 1.24 | D17: 0.4493150685 | E17: 0.02191780822 | F17: 1.004075684 | G17: 783629 | H17: 0.89 | I17: 0.4493150685 | J17: 0.02191780822 | K17: 0.8685232425
A18: 2015-04-17 | B18: 838750.25 | C18: 1.14 | D18: 0.4493150685 | E18: 0.02191780822 | F18: 0.9604769001 | G18: 763532.5 | H18: 0.93 | I18: 0.4493150685 | J18: 0.02191780822 | K18: 0.9175777832
A19: 2015-04-18 | B19: 735119.5833 | C19: 1.18 | D19: 0.4493150685 | E19: 0.02191780822 | F19: 1.123081946 | G19: 658010.5 | H19: 1.29 | I19: 0.4493150685 | J19: 0.02191780822 | K19: 1.338277534
A20: 2015-04-19 | B20: 710810.25 | C20: 1.39 | D20: 0.4493150685 | E20: 0.02191780822 | F20: 1.309210619 | G20: 680019 | H20: 1.87 | I20: 0.4493150685 | J20: 0.02191780822 | K20: 1.72142249
A21: 2015-04-20 | B21: 808452.25 | C21: 1.2 | D21: 0.4493150685 | E21: 0.02191780822 | F21: 1.033580225 | G21: 772062.5 | H21: 0.92 | I21: 0.4493150685 | J21: 0.02191780822 | K21: 0.9009639122
A22: 2015-04-21 | B22: 815808.25 | C22: 1.11 | D22: 0.4493150685 | E22: 0.02191780822 | F22: 0.9691005727 | G22: 759755.5 | H22: 0 | I22: 0.4493150685 | J22: 0.02191780822 | K22: 0.3100995583
A23: 2015-04-22 | B23: 817100.5833 | C23: 1.26 | D23: 0.4493150685 | E23: 0.02191780822 | F23: 1.059354963 | G23: 763455.5 | H23: 0.52 | I23: 0.4493150685 | J23: 0.02191780822 | K23: 0.6491533238
A24: 2015-04-23 | B24: 815186.9167 | C24: 0.91 | D24: 0.4493150685 | E24: 0.02191780822 | F24: 0.8471675824 | G24: 767437 | H24: 0.7 | I24: 0.4493150685 | J24: 0.02191780822 | K24: 0.7630593782
A25: 2015-04-24 | B25: 798538.5833 | C25: 0.75 | D25: 0.4493150685 | E25: 0.02191780822 | F25: 0.7646464356 | G25: 752688.5 | H25: 1.22 | I25: 0.4493150685 | J25: 0.02191780822 | K25: 1.123440257
A26: 2015-04-25 | B26: 708715 | C26: 1.35 | D26: 0.4493150685 | E26: 0.02191780822 | F26: 1.284860628 | G26: 664838.5 | H26: 2.97 | I26: 0.4493150685 | J26: 0.02191780822 | K26: 2.587998881
A27: 2015-04-26 | B27: 684561.5833 | C27: 1.6 | D27: 0.4493150685 | E27: 0.02191780822 | F27: 1.512792121 | G27: 666430.5 | H27: 2.26 | I27: 0.4493150685 | J27: 0.02191780822 | K27: 2.04912744
A28: 2015-04-27 | B28: 807037.3333 | C28: 1.26 | D28: 0.4493150685 | E28: 0.02191780822 | F28: 1.072565446 | G28: 767294 | H28: 1.95 | I28: 0.4493150685 | J28: 0.02191780822 | K28: 1.577752465
A29: 2015-04-28 | B29: 814777.75 | C29: 1.04 | D29: 0.4493150685 | E29: 0.02191780822 | F29: 0.927369173 | G29: 754472.5 | H29: 1.76 | I29: 0.4493150685 | J29: 0.02191780822 | K29: 1.47864997
A30: 2015-04-29 | B30: 790886.8333 | C30: 1.14 | D30: 0.4493150685 | E30: 0.02191780822 | F30: 1.018603163 | G30: 768868 | H30: 1.15 | I30: 0.4493150685 | J30: 0.02191780822 | K30: 1.054277197
A31: 2015-04-30 | B31: 769569.9167 | C31: 1.3 | D31: 0.4493150685 | E31: 0.02191780822 | F31: 1.150772509 | G31: 775059 | H31: 1.41 | I31: 0.4493150685 | J31: 0.02191780822 | K31: 1.21358503
A32: 2015-05-01 | B32: 767444.5833 | C32: 1 | D32: 0.4493150685 | E32: 0.02191780822 | F32: 0.9585051698 | G32: 772654.5 | H32: 2.08 | I32: 0.4493150685 | J32: 0.02191780822 | K32: 1.650933018
A33: 2015-05-02 | B33: 688544.6667 | C33: 1.83 | D33: 0.4493150685 | E33: 0.02191780822 | F33: 1.671059989 | G33: 691162 | H33: 2.48 | I33: 0.4493150685 | J33: 0.02191780822 | K33: 2.134955336
A34: 2015-05-03 | B34: 650859.5 | C34: 1.89 | D34: 0.4493150685 | E34: 0.02191780822 | F34: 1.813907753 | G34: 644463.5 | H34: 4.26 | I34: 0.4493150685 | J34: 0.02191780822 | K34: 3.670647236
A35: 2015-05-04 | B35: 681252.5833 | C35: 1.33 | D35: 0.4493150685 | E35: 0.02191780822 | F35: 1.32197583 | G35: 652408 | H35: 2.64 | I35: 0.4493150685 | J35: 0.02191780822 | K35: 2.384397494
A36: 2015-05-05 | B36: 730812.6667 | C36: 1.13 | D36: 0.4493150685 | E36: 0.02191780822 | F36: 1.095492281 | G36: 737444.5 | H36: 2.42 | I36: 0.4493150685 | J36: 0.02191780822 | K36: 1.960284442
A37: 2015-05-06 | B37: 743468.4167 | C37: 2.9 | D37: 0.4493150685 | E37: 0.02191780822 | F37: 2.267212577 | G37: 756151.5 | H37: 3.56 | I37: 0.4493150685 | J37: 0.02191780822 | K37: 2.665601625
A38: 2015-05-07 | B38: 752812.0833 | C38: 2.77 | D38: 0.4493150685 | E38: 0.02191780822 | F38: 2.152728703 | G38: 774863 | H38: 2.52 | I38: 0.4493150685 | J38: 0.02191780822 | K38: 1.930147652
A39: 2015-05-08 | B39: 756564 | C39: 1.29 | D39: 0.4493150685 | E39: 0.02191780822 | F39: 1.163946474 | G39: 780407 | H39: 1.9 | I39: 0.4493150685 | J39: 0.02191780822 | K39: 1.519207285
A40: 2015-05-09 | B40: 655351.6667 | C40: 1.94 | D40: 0.4493150685 | E40: 0.02191780822 | F40: 1.839622066 | G40: 664331 | H40: 3.36 | I40: 0.4493150685 | J40: 0.02191780822 | K40: 2.88350235
A41: 2015-05-10 | B41: 652669.4167 | C41: 2.71 | D41: 0.4493150685 | E41: 0.02191780822 | F41: 2.437069939 | G41: 634158.5 | H41: 3.43 | I41: 0.4493150685 | J41: 0.02191780822 | K41: 3.075889605
A42: 2015-05-11 | B42: 697038.9167 | C42: 3.65 | D42: 0.4493150685 | E42: 0.02191780822 | F42: 2.956219092 | G42: 705944.5 | H42: 4.42 | I42: 0.4493150685 | J42: 0.02191780822 | K42: 3.464297451
A43: 2015-05-12 | B43: 756742.8333 | C43: 2.5 | D43: 0.4493150685 | E43: 0.02191780822 | F43: 1.963149973 | G43: 711096 | H43: 5.6 | I43: 0.4493150685 | J43: 0.02191780822 | K43: 4.268903214
A44: 2015-05-13 | B44: 736731.3333 | C44: 2.36 | D44: 0.4493150685 | E44: 0.02191780822 | F44: 1.921461157 | G44: 742997.5 | H44: 2.38 | I44: 0.4493150685 | J44: 0.02191780822 | K44: 1.918713106
A45: 2015-05-14 | B45: 788620 | C45: 2.37 | D45: 0.4493150685 | E45: 0.02191780822 | F45: 1.801374553 | G45: 787758.5 | H45: 2.32 | I45: 0.4493150685 | J45: 0.02191780822 | K45: 1.771610063
A46: 2015-05-15 | B46: 773853.1667 | C46: 2.3 | D46: 0.4493150685 | E46: 0.02191780822 | F46: 1.790520939 | G46: 738986 | H46: 2.66 | I46: 0.4493150685 | J46: 0.02191780822 | K46: 2.118578701
A47: 2015-05-16 | B47: 657653.25 | C47: 3.49 | D47: 0.4493150685 | E47: 0.02191780822 | F47: 3.011618589 | G47: 612193.5 | H47: 5.24 | I47: 0.4493150685 | J47: 0.02191780822 | K47: 4.664534445
A48: 2015-05-17 | B48: 652669.4167 | C48: 5.5 | D48: 0.4493150685 | E48: 0.02191780822 | F48: 4.574447385 | G48: 615417.5 | H48: 5.44 | I48: 0.4493150685 | J48: 0.02191780822 | K48: 4.80258946
A49: 2015-05-18 | B49: 697038.9167 | C49: 1.84 | D49: 0.4493150685 | E49: 0.02191780822 | F49: 1.657869933 | G49: 745577.5 | H49: 2.9 | I49: 0.4493150685 | J49: 0.02191780822 | K49: 2.260796322
A50: 2015-05-19 | B50: 755558.0833 | C50: 2.19 | D50: 0.4493150685 | E50: 0.02191780822 | F50: 1.761082538 | G50: 748776 | H50: 3.36 | I50: 0.4493150685 | J50: 0.02191780822 | K50: 2.558308493
A51: 2015-05-20 | B51: 744412.9167 | C51: 2.39 | D51: 0.4493150685 | E51: 0.02191780822 | F51: 1.921782666 | G51: 752476.5 | H51: 3.16 | I51: 0.4493150685 | J51: 0.02191780822 | K51: 2.412834429
A52: 2015-05-21 | B52: 739555.25 | C52: 3.19 | D52: 0.4493150685 | E52: 0.02191780822 | F52: 2.475272292 | G52: 732347.5 | H52: 1.82 | I52: 0.4493150685 | J52: 0.02191780822 | K52: 1.564283647
A53: 2015-05-22 | B53: 733356.9167 | C53: 2.62 | D53: 0.4493150685 | E53: 0.02191780822 | F53: 2.107568347 | G53: 733223 | H53: 3.13 | I53: 0.4493150685 | J53: 0.02191780822 | K53: 2.455733113
A54: 2015-05-23 | B54: 643995.6667 | C54: 2.08 | D54: 0.4493150685 | E54: 0.02191780822 | F54: 1.980757644 | G54: 641773 | H54: 2.05 | I54: 0.4493150685 | J54: 0.02191780822 | K54: 1.964245925
A55: 2015-05-24 | B55: 616505.75 | C55: 2.26 | D55: 0.4493150685 | E55: 0.02191780822 | F55: 2.2150636 | G55: 608365 | H55: 3.36 | I55: 0.4493150685 | J55: 0.02191780822 | K55: 3.148767598
A56: 2015-05-25 | B56: 697038.9167 | C56: 2.55 | D56: 0.4493150685 | E56: 0.02191780822 | F56: 2.167167117 | G56: 641270.5 | H56: 3.49 | I56: 0.4493150685 | J56: 0.02191780822 | K56: 3.088558641
A57: 2015-05-26 | B57: 755558.0833 | C57: 1.84 | D57: 0.4493150685 | E57: 0.02191780822 | F57: 1.52946564 | G57: 706662.5 | H57: 2.13 | I57: 0.4493150685 | J57: 0.02191780822 | K57: 1.840483852
A58: 2015-05-27 | B58: 744412.9167 | C58: 1.88 | D58: 0.4493150685 | E58: 0.02191780822 | F58: 1.579230884 | G58: 711160.5 | H58: 2.24 | I58: 0.4493150685 | J58: 0.02191780822 | K58: 1.90618145
A59: 2015-05-28 | B59: 730423.25 | C59: 2.19 | D59: 0.4493150685 | E59: 0.02191780822 | F59: 1.821684147 | G59: 688359.5 | H59: 2.82 | I59: 0.4493150685 | J59: 0.02191780822 | K59: 2.390609565
A60: 2015-05-29 | B60: 728557 | C60: 1.89 | D60: 0.4493150685 | E60: 0.02191780822 | F60: 1.620463464 | G60: 717668.5 | H60: 2.44 | I60: 0.4493150685 | J60: 0.02191780822 | K60: 2.028235897
A61: 2015-05-30 | B61: 630243.6667 | C61: 2.29 | D61: 0.4493150685 | E61: 0.02191780822 | F61: 2.190580156 | G61: 627162 | H61: 2 | I61: 0.4493150685 | J61: 0.02191780822 | K61: 1.970144875
A62: 2015-05-31 | B62: 614851.9167 | C62: 2.3 | D62: 0.4493150685 | E62: 0.02191780822 | F62: 2.253550448 | G62: 612541 | H62: 5.58 | I62: 0.4493150685 | J62: 0.02191780822 | K62: 4.939424463
A63: 2015-06-01 | B63: 722729.6667 | C63: 2.22 | D63: 0.4493150685 | E63: 0.02191780822 | F63: 1.861829452 | G63: 711845.5 | H63: 6.62 | I63: 0.4493150685 | J63: 0.02191780822 | K63: 4.9808526
A64: 2015-06-02 | B64: 700237.9167 | C64: 4.11 | D64: 0.4493150685 | E64: 0.02191780822 | F64: 3.271173515 | G64: 717630 | H64: 4.9 | I64: 0.4493150685 | J64: 0.02191780822 | K64: 3.742318465
A65: 2015-06-03 | B65: 705702 | C65: 2.9 | D65: 0.4493150685 | E65: 0.02191780822 | F65: 2.388543606 | G65: 723129.5 | H65: 2.64 | I65: 0.4493150685 | J65: 0.02191780822 | K65: 2.151203795
A66: 2015-06-04 | B66: 722844.5833 | C66: 2.69 | D66: =internal_BSUoS_cost_per_year/days_per_year -> 0.4493150685 | E66: =forecast_BSIS_profit_per_year/days_per_year -> 0.02191780822 | F66: 2.186637523 | G66: 720948 | H66: 1.57 | I66: =internal_BSUoS_cost_per_year/days_per_year -> 0.4493150685 | J66: =forecast_BSIS_profit_per_year/days_per_year -> 0.02191780822 | K66: 1.415636079
A67: 2015-06-05 | B67: 713511.4167 | C67: 3.17 | D67: 0.4493150685 | E67: 0.02191780822 | F67: =BSUoS_per_SP(B67,C67,D67,E67) -> 2.551607473 | G67: 707117 | H67: 2.81 | I67: 0.4493150685 | J67: 0.02191780822 | K67: =BSUoS_per_SP(G67,H67,I67,J67) -> 2.320125241
A68: 2015-06-06 | B68: 580039.3333 | C68: 5.24 | D68: 0.4493150685 | E68: 0.02191780822 | F68: 4.923117239 | G68: 575409 | H68: 7.54 | I68: 0.4493150685 | J68: 0.02191780822 | K68: 6.96130926
A69: 2015-06-07 | B69: 593085.75 | C69: 3.76 | D69: 0.4493150685 | E69: 0.02191780822 | F69: 3.567104939 | G69: 574904 | H69: 3.77 | I69: 0.4493150685 | J69: 0.02191780822 | K69: 3.688615838
A70: 2015-06-08 | B70: 710402.25 | C70: 2.27 | D70: 0.4493150685 | E70: 0.02191780822 | F70: 1.929330154 | G70: 711365 | H70: 1.61 | I70: 0.4493150685 | J70: 0.02191780822 | K70: 1.462821477
A71: 2015-06-09 | B71: 727229.0833 | C71: 1.95 | D71: 0.4493150685 | E71: 0.02191780822 | F71: 1.664675089 | G71: 726626.5 | H71: 0.9 | I71: 0.4493150685 | J71: 0.02191780822 | K71: 0.9435390421
A72: 2015-06-10 | B72: 713614.4167 | C72: 1.74 | D72: 0.4493150685 | E72: 0.02191780822 | F72: 1.549296959 | G72: 718163.5 | H72: 1.38 | I72: 0.4493150685 | J72: 0.02191780822 | K72: 1.288842103
A73: 2015-06-11 | B73: 707135.5833 | C73: 1.53 | D73: 0.4493150685 | E73: 0.02191780822 | F73: 1.41500362 | G73: 709223.5 | H73: 1.33 | I73: 0.4493150685 | J73: 0.02191780822 | K73: 1.269838584
A74: 2015-06-12 | B74: 716208 | C74: 2.23 | D74: 0.4493150685 | E74: 0.02191780822 | F74: 1.885765029 | G74: 727264.5 | H74: 2.61 | I74: 0.4493150685 | J74: 0.02191780822 | K74: 2.11835042
A75: 2015-06-13 | B75: 645161 | C75: 1.79 | D75: 0.4493150685 | E75: 0.02191780822 | F75: 1.752430789 | G75: 663473.5 | H75: 2.34 | I75: 0.4493150685 | J75: 0.02191780822 | K75: 2.118545715
A76: 2015-06-14 | B76: 633437.25 | C76: 1.72 | D76: 0.4493150685 | E76: 0.02191780822 | F76: 1.729611627 | G76: 629034.5 | H76: 2.35 | I76: 0.4493150685 | J76: 0.02191780822 | K76: 2.242486098
A77: 2015-06-15 | B77: 741983.1667 | C77: 1.53 | D77: 0.4493150685 | E77: 0.02191780822 | F77: 1.348548417 | G77: 714695.5 | H77: 1.22 | I77: 0.4493150685 | J77: 0.02191780822 | K77: 1.183160393
A78: 2015-06-16 | B78: 726455.3333 | C78: 1.63 | D78: 0.4493150685 | E78: 0.02191780822 | F78: 1.446201072 | G78: 716236 | H78: 1.49 | I78: 0.4493150685 | J78: 0.02191780822 | K78: 1.369101804
A79: 2015-06-17 | B79: 715291.3333 | C79: 4.53 | D79: 0.4493150685 | E79: 0.02191780822 | F79: 3.495919842 | G79: 719483 | H79: 3.71 | I79: 0.4493150685 | J79: 0.02191780822 | K79: 2.905697563
A80: 2015-06-18 | B80: 689181.3333 | C80: 4.99 | D80: 0.4493150685 | E80: 0.02191780822 | F80: 3.962094138 | G80: 697880 | H80: 2.29 | I80: 0.4493150685 | J80: 0.02191780822 | K80: 1.978277068
A81: 2015-06-19 | B81: 701545.9167 | C81: 2.04 | D81: 0.4493150685 | E81: 0.02191780822 | F81: 1.78976147 | G81: 701101.5 | H81: 1.62 | I81: 0.4493150685 | J81: 0.02191780822 | K81: 1.491366449
A82: 2015-06-20 | B82: 648475.6667 | C82: 2.35 | D82: 0.4493150685 | E82: 0.02191780822 | F82: 2.17525398 | G82: 650310 | H82: 1.81 | I82: 0.4493150685 | J82: 0.02191780822 | K82: 1.75393274
A83: 2015-06-21 | B83: 603866 | C83: 2.31 | D83: 0.4493150685 | E83: 0.02191780822 | F83: 2.302828773 | G83: 585028 | H83: 2 | I83: 0.4493150685 | J83: 0.02191780822 | K83: 2.112035663
A84: 2015-06-22 | B84: 739485.6667 | C84: 1.87 | D84: 0.4493150685 | E84: 0.02191780822 | F84: 1.582991429 | G84: 709912.5 | H84: 1.71 | I84: 0.4493150685 | J84: 0.02191780822 | K84: 1.536246746
A85: 2015-06-23 | B85: 714839.0833 | C85: 2.04 | D85: 0.4493150685 | E85: 0.02191780822 | F85: 1.756479431 | G85: 724695.5 | H85: 2.02 | I85: 0.4493150685 | J85: 0.02191780822 | K85: 1.718789672
A86: 2015-06-24 | B86: 721495.5833 | C86: 1.84 | D86: 0.4493150685 | E86: 0.02191780822 | F86: 1.601672081 | G86: 723668.5 | H86: 1.52 | I86: 0.4493150685 | J86: 0.02191780822 | K86: 1.375768999
A87: 2015-06-25 | B87: 728107 | C87: 1.66 | D87: 0.4493150685 | E87: 0.02191780822 | F87: 1.463521158 | G87: 730964.5 | H87: 1.68 | I87: 0.4493150685 | J87: 0.02191780822 | K87: 1.471481496
A88: 2015-06-26 | B88: 708707.8333 | C88: 1.69 | D88: 0.4493150685 | E88: 0.02191780822 | F88: 1.52474644 | G88: 722214.5 | H88: 1.73 | I88: 0.4493150685 | J88: 0.02191780822 | K88: 1.523925042
A89: 2015-06-27 | B89: 601643.9167 | C89: 2.04 | D89: 0.4493150685 | E89: 0.02191780822 | F89: 2.086948428 | G89: 611154.5 | H89: 1.38 | I89: 0.4493150685 | J89: 0.02191780822 | K89: 1.514511891
A90: 2015-06-28 | B90: 605025.5833 | C90: 2.14 | D90: 0.4493150685 | E90: 0.02191780822 | F90: 2.157923792 | G90: 601366.5 | H90: 3.61 | I90: 0.4493150685 | J90: 0.02191780822 | K90: 3.393274645
A91: 2015-06-29 | B91: 715083.4167 | C91: 1.79 | D91: 0.4493150685 | E91: 0.02191780822 | F91: 1.581075204 | G91: 711431.5 | H91: 1.41 | I91: 0.4493150685 | J91: 0.02191780822 | K91: 1.322122142
A92: 2015-06-30 | B92: 709666.1667 | C92: 1.91 | D92: 0.4493150685 | E92: 0.02191780822 | F92: 1.677690632 | G92: 720229 | H92: 2 | I92: 0.4493150685 | J92: 0.02191780822 | K92: 1.715565466
A93: 2015-07-01 | B93: 738738.75 | C93: 2.05 | D93: 0.4493150685 | E93: 0.02191780822 | F93: 1.706421348 | G93: 754494 | H93: 4.61 | I93: 0.4493150685 | J93: 0.02191780822 | K93: 3.367289866
A94: 2015-07-02 | B94: 757026.5833 | C94: 1.55 | D94: 0.4493150685 | E94: 0.02191780822 | F94: 1.334958991 | G94: 756165 | H94: 2.79 | I94: 0.4493150685 | J94: 0.02191780822 | K94: 2.156407662
A95: 2015-07-03 | B95: 704159.3333 | C95: 1.68 | D95: 0.4493150685 | E95: 0.02191780822 | F95: 1.527495921 | G95: 698878.5 | H95: 1.32 | I95: 0.4493150685 | J95: 0.02191780822 | K95: 1.281482605
A96: 2015-07-04 | B96: 613587.1667 | C96: 3.16 | D96: 0.4493150685 | E96: 0.02191780822 | F96: 2.95899359 | G96: 613226 | H96: 3.29 | I96: 0.4493150685 | J96: 0.02191780822 | K96: 3.06673233
A97: 2015-07-05 | B97: 611355.8333 | C97: 2.56 | D97: 0.4493150685 | E97: 0.02191780822 | F97: 2.479079293 | G97: 610480 | H97: 2.09 | I97: 0.4493150685 | J97: 0.02191780822 | K97: 2.097693618
A98: 2015-07-06 | B98: 719396.3333 | C98: 2.31 | D98: 0.4493150685 | E98: 0.02191780822 | F98: 1.93301047 | G98: 704020 | H98: 1.6 | I98: 0.4493150685 | J98: 0.02191780822 | K98: 1.470980938
A99: 2015-07-07 | B99: 711307.4167 | C99: 2.41 | D99: 0.4493150685 | E99: 0.02191780822 | F99: 2.025285847 | G99: 691457 | H99: 1.33 | I99: 0.4493150685 | J99: 0.02191780822 | K99: 1.302467109
A100: 2015-07-08 | B100: 709731.5833 | C100: 2.57 | D100: 0.4493150685 | E100: 0.02191780822 | F100: 2.142498859 | G100: 710864 | H100: 1.8 | I100: 0.4493150685 | J100: 0.02191780822 | K100: 1.597492629
A101: 2015-07-09 | B101: 698124.0833 | C101: 2.18 | D101: 0.4493150685 | E101: 0.02191780822 | F101: 1.898803078 | G101: 701900 | H101: 1.37 | I101: 0.4493150685 | J101: 0.02191780822 | K101: 1.311582847
A102: 2015-07-10 | B102: 683574.5833 | C102: 1.89 | D102: 0.4493150685 | E102: 0.02191780822 | F102: 1.727096515 | G102: 692761 | H102: 2.24 | I102: 0.4493150685 | J102: 0.02191780822 | K102: 1.956807615
A103: 2015-07-11 | B103: 603178.3333 | C103: 2.33 | D103: 0.4493150685 | E103: 0.02191780822 | F103: 2.322034292 | G103: 602477 | H103: 1.48 | I103: 0.4493150685 | J103: 0.02191780822 | K103: 1.619314928
A104: 2015-07-12 | B104: 600729.25 | C104: 2.54 | D104: 0.4493150685 | E104: 0.02191780822 | F104: 2.506288193 | G104: 601066.5 | H104: 2.76 | I104: 0.4493150685 | J104: 0.02191780822 | K104: 2.68789118
A105: 2015-07-13 | B105: 729459.5 | C105: 2.04 | D105: 0.4493150685 | E105: 0.02191780822 | F105: 1.721273271 | G105: 741582 | H105: 3.27 | I105: 0.4493150685 | J105: 0.02191780822 | K105: 2.522445259
A106: 2015-07-14 | B106: 746311.9167 | C106: 1.92 | D106: 0.4493150685 | E106: 0.02191780822 | F106: 1.602010955 | G106: 750622 | H106: 1.74 | I106: 0.4493150685 | J106: 0.02191780822 | K106: 1.472911798
A107: 2015-07-15 | B107: 711305.6667 | C107: 2.07 | D107: 0.4493150685 | E107: 0.02191780822 | F107: 1.786291694 | G107: 729261 | H107: 1.31 | I107: 0.4493150685 | J107: 0.02191780822 | K107: 1.221236293
A108: 2015-07-16 | B108: 714776.5833 | C108: 2.02 | D108: 0.4493150685 | E108: 0.02191780822 | F108: 1.742641411 | G108: 718272.5 | H108: 1.61 | I108: 0.4493150685 | J108: 0.02191780822 | K108: 1.448754789
A109: 2015-07-17 | B109: 671484.6667 | C109: 3.14 | D109: 0.4493150685 | E109: 0.02191780822 | F109: 2.688965502 | G109: 673707.5 | H109: 4.73 | I109: 0.4493150685 | J109: 0.02191780822 | K109: 3.860129314
A110: 2015-07-18 | B110: 576869.9167 | C110: 3.57 | D110: 0.4493150685 | E110: 0.02191780822 | F110: 3.502695581 | G110: 579491 | H110: 5.16 | I110: 0.4493150685 | J110: 0.02191780822 | K110: 4.858746728
A111: 2015-07-19 | B111: 615952.5833 | C111: 2.45 | D111: 0.4493150685 | E111: 0.02191780822 | F111: 2.371284822 | G111: 581097 | H111: 1.95 | I111: 0.4493150685 | J111: 0.02191780822 | K111: 2.083301067
A112: 2015-07-20 | B112: 713991.9167 | C112: 2.13 | D112: 0.4493150685 | E112: 0.02191780822 | F112: 1.821589037 | G112: 713444.5 | H112: 2.33 | I112: 0.4493150685 | J112: 0.02191780822 | K112: 1.96315338
A113: 2015-07-21 | B113: 689583.25 | C113: 3.06 | D113: 0.4493150685 | E113: 0.02191780822 | F113: 2.560387945 | G113: 696071.5 | H113: 2.77 | I113: 0.4493150685 | J113: 0.02191780822 | K113: 2.328207427
A114: 2015-07-22 | B114: 708531.75 | C114: 2.29 | D114: 0.4493150685 | E114: 0.02191780822 | F114: 1.948535846 | G114: 721003 | H114: 1.87 | I114: 0.4493150685 | J114: 0.02191780822 | K114: 1.623571608
A115: 2015-07-23 | B115: 699633.5 | C115: 2.33 | D115: 0.4493150685 | E115: 0.02191780822 | F115: 2.001903853 | G115: 704914 | H115: 2.04 | I115: 0.4493150685 | J115: 0.02191780822 | K115: 1.78121019
A116: 2015-07-24 | B116: 740602.25 | C116: 2.01 | D116: 0.4493150685 | E116: 0.02191780822 | F116: 1.675123751 | G116: 731867 | H116: 2.43 | I116: 0.4493150685 | J116: 0.02191780822 | K116: 1.982054116
A117: 2015-07-25 | B117: 590932.9167 | C117: 2.42 | D117: 0.4493150685 | E117: 0.02191780822 | F117: 2.446301019 | G117: 599878 | H117: 1.7 | I117: 0.4493150685 | J117: 0.02191780822 | K117: 1.809701306
A118: 2015-07-26 | B118: 623904.4167 | C118: 2.11 | D118: 0.4493150685 | E118: 0.02191780822 | F118: 2.068587475 | G118: 614947 | H118: 1.83 | I118: 0.4493150685 | J118: 0.02191780822 | K118: 1.871055554
A119: 2015-07-27 | B119: 690432.4167 | C119: 1.96 | D119: 0.4493150685 | E119: 0.02191780822 | F119: 1.760636819 | G119: 694217 | H119: 2.55 | I119: 0.4493150685 | J119: 0.02191780822 | K119: 2.175976676
A120: 2015-07-28 | B120: 697373.6667 | C120: 1.54 | D120: 0.4493150685 | E120: 0.02191780822 | F120: 1.441980917 | G120: 697802 | H120: 1.81 | I120: 0.4493150685 | J120: 0.02191780822 | K120: 1.634561093
A121: 2015-07-29 | B121: 716456.9167 | C121: 1.8 | D121: 0.4493150685 | E121: 0.02191780822 | F121: 1.585021851 | G121: 696921 | H121: 1.08 | I121: 0.4493150685 | J121: 0.02191780822 | K121: 1.112895149
A122: 2015-07-30 | B122: 696664.0833 | C122: 1.68 | D122: 0.4493150685 | E122: 0.02191780822 | F122: 1.543929355 | G122: 693330 | H122: 1.16 | I122: 0.4493150685 | J122: 0.02191780822 | K122: 1.176351809
A123: 2015-07-31 | B123: 672210.5 | C123: 1.71 | D123: 0.4493150685 | E123: 0.02191780822 | F123: 1.622409664 | G123: 667952.5 | H123: 1.24 | I123: 0.4493150685 | J123: 0.02191780822 | K123: 1.280930366
A124: 2015-08-01 | B124: 602805.8333 | C124: 1.89 | D124: 0.4493150685 | E124: 0.02191780822 | F124: 1.95850738 | G124: 596100.5 | H124: 4.33 | I124: 0.4493150685 | J124: 0.02191780822 | K124: 4.027176648
A125: 2015-08-02 | B125: 592648.0833 | C125: 2 | D125: 0.4493150685 | E125: 0.02191780822 | F125: 2.084880064 | G125: 577100.5 | H125: 2.39 | I125: 0.4493150685 | J125: 0.02191780822 | K125: 2.478946456
A126: 2015-08-03 | B126: 671375.1667 | C126: 2.24 | D126: 0.4493150685 | E126: 0.02191780822 | F126: 2.019139825 | G126: 668035 | H126: 3.58 | I126: 0.4493150685 | J126: 0.02191780822 | K126: 3.032176458
A127: 2015-08-04 | B127: 667747.8333 | C127: 3.64 | D127: 0.4493150685 | E127: 0.02191780822 | F127: 3.078406824 | G127: 659799.5 | H127: 5.07 | I127: 0.4493150685 | J127: 0.02191780822 | K127: 4.199151258
A128: 2015-08-05 | B128: 698828.9167 | C128: 3.79 | D128: 0.4493150685 | E128: 0.02191780822 | F128: 3.048814517 | G128: 698254.5 | H128: 2.62 | I128: 0.4493150685 | J128: 0.02191780822 | K128: 2.213521154
A129: 2015-08-06 | B129: 689826.6667 | C129: 1.88 | D129: 0.4493150685 | E129: 0.02191780822 | F129: 1.7041954 | G129: 691795.5 | H129: 2.12 | I129: 0.4493150685 | J129: 0.02191780822 | K129: 1.872806434
A130: 2015-08-07 | B130: 678920.4167 | C130: 1.84 | D130: =internal_BSUoS_cost_per_year/days_per_year -> 0.4493150685 | E130: =forecast_BSIS_profit_per_year/days_per_year -> 0.02191780822 | F130: 1.702115124 | G130: 691215.5 | H130: 1.39 | I130: =internal_BSUoS_cost_per_year/days_per_year -> 0.4493150685 | J130: =forecast_BSIS_profit_per_year/days_per_year -> 0.02191780822 | K130: 1.346323002
A131: 2015-08-08 | B131: 578867.5833 | C131: 2.31 | D131: 0.4493150685 | E131: 0.02191780822 | F131: =BSUoS_per_SP(B131,C131,D131,E131) -> 2.402274785 | G131: 598084.5 | H131: 2.56 | I131: 0.4493150685 | J131: 0.02191780822 | K131: =BSUoS_per_SP(G131,H131,I131,J131) -> 2.534092201
A132: 2015-08-09 | B132: 591873.9167 | C132: 2.17 | D132: 0.4493150685 | E132: 0.02191780822 | F132: 2.231218131 | G132: 589624 | H132: 3.65 | I132: 0.4493150685 | J132: 0.02191780822 | K132: 3.494769548
A133: 2015-08-10 | B133: 706068 | C133: 1.86 | D133: 0.4493150685 | E133: 0.02191780822 | F133: 1.650832498 | G133: 702769.5 | H133: 2.64 | I133: 0.4493150685 | J133: 0.02191780822 | K133: 2.213526474
A134: 2015-08-11 | B134: 703866.25 | C134: 1.96 | D134: 0.4493150685 | E134: 0.02191780822 | F134: 1.727033271 | G134: 721633.5 | H134: 2.43 | I134: 0.4493150685 | J134: 0.02191780822 | K134: 2.010160275
A135: 2015-08-12 | B135: 700114.5833 | C135: 1.97 | D135: 0.4493150685 | E135: 0.02191780822 | F135: 1.743427865 | G135: 717293 | H135: 1.37 | I135: 0.4493150685 | J135: 0.02191780822 | K135: 1.283436476
A136: 2015-08-13 | B136: 729985.5 | C136: 2.1 | D136: 0.4493150685 | E136: 0.02191780822 | F136: 1.761129666 | G136: 741557 | H136: 2.53 | I136: 0.4493150685 | J136: 0.02191780822 | K136: 2.023580116
A137: 2015-08-14 | B137: 721262.4167 | C137: 1.78 | D137: 0.4493150685 | E137: 0.02191780822 | F137: 1.560597952 | G137: 742565 | H137: 3.45 | I137: 0.4493150685 | J137: 0.02191780822 | K137: 2.640307583
A138: 2015-08-15 | B138: 611413.1667 | C138: 1.93 | D138: 0.4493150685 | E138: 0.02191780822 | F138: 1.96364814 | G138: 613662 | H138: 1.12 | I138: 0.4493150685 | J138: 0.02191780822 | K138: 1.296479169
A139: 2015-08-16 | B139: 611912.4167 | C139: 1.94 | D139: 0.4493150685 | E139: 0.02191780822 | F139: 1.97021794 | G139: 614394.5 | H139: 1.37 | I139: 0.4493150685 | J139: 0.02191780822 | K139: 1.498387029
A140: 2015-08-17 | B140: 719685.1667 | C140: 1.91 | D140: 0.4493150685 | E140: 0.02191780822 | F140: 1.654334883 | G140: 707933 | H140: 0.92 | I140: 0.4493150685 | J140: 0.02191780822 | K140: 0.9825788599
A141: 2015-08-18 | B141: 728608.9167 | C141: 1.97 | D141: 0.4493150685 | E141: 0.02191780822 | F141: 1.675246943 | G141: 727921.5 | H141: 1.36 | I141: 0.4493150685 | J141: 0.02191780822 | K141: 1.257827075
A142: 2015-08-19 | B142: 726550.1667 | C142: 1.92 | D142: 0.4493150685 | E142: 0.02191780822 | F142: 1.6455853 | G142: 730498.5 | H142: 1.85 | I142: 0.4493150685 | J142: 0.02191780822 | K142: 1.588779162
A143: 2015-08-20 | B143: 711995.3333 | C143: 2.32 | D143: 0.4493150685 | E143: 0.02191780822 | F143: 1.960126124 | G143: 736233.5 | H143: 2.74 | I143: 0.4493150685 | J143: 0.02191780822 | K143: 2.180828378
A144: 2015-08-21 | B144: 706353.4167 | C144: 3.07 | D144: 0.4493150685 | E144: 0.02191780822 | F144: 2.506678672 | G144: 711886 | H144: 2.55 | I144: 0.4493150685 | J144: 0.02191780822 | K144: 2.121968967
A145: 2015-08-22 | B145: 629162.5833 | C145: 2.05 | D145: 0.4493150685 | E145: 0.02191780822 | F145: 2.003614326 | G145: 641964 | H145: 2.49 | I145: 0.4493150685 | J145: 0.02191780822 | K145: 2.306359858
A146: 2015-08-23 | B146: 607513.3333 | C146: 1.29 | D146: 0.4493150685 | E146: 0.02191780822 | F146: 1.449516307 | G146: 604124 | H146: 5.62 | I146: 0.4493150685 | J146: 0.02191780822 | K146: 5.041349127
A147: 2015-08-24 | B147: 721010.6667 | C147: 2.34 | D147: 0.4493150685 | E147: 0.02191780822 | F147: 1.949484821 | G147: 739441.5 | H147: 2.74 | I147: 0.4493150685 | J147: 0.02191780822 | K147: 2.171367058
A148: 2015-08-25 | B148: 733229.8333 | C148: 2.8 | D148: 0.4493150685 | E148: 0.02191780822 | F148: 2.230677959 | G148: 724288 | H148: 2.16 | I148: 0.4493150685 | J148: 0.02191780822 | K148: 1.816404524
A149: 2015-08-26 | B149: 739110.5833 | C149: 2.27 | D149: 0.4493150685 | E149: 0.02191780822 | F149: 1.854389936 | G149: 712472.5 | H149: 1.77 | I149: 0.4493150685 | J149: 0.02191780822 | K149: 1.572833739
A150: 2015-08-27 | B150: 732981.4167 | C150: 2.04 | D150: 0.4493150685 | E150: 0.02191780822 | F150: 1.713004839 | G150: 702019.5 | H150: 2.01 | I150: 0.4493150685 | J150: 0.02191780822 | K150: 1.76718612
A151: 2015-08-28 | B151: 721352.75 | C151: 1.68 | D151: 0.4493150685 | E151: 0.02191780822 | F151: 1.491086888 | G151: 679622 | H151: 1.3 | I151: 0.4493150685 | J151: 0.02191780822 | K151: 1.303077299
A152: 2015-08-29 | B152: 633843.25 | C152: 1.89 | D152: 0.4493150685 | E152: 0.02191780822 | F152: 1.862606355 | G152: 616704.5 | H152: 1.59 | I152: 0.4493150685 | J152: 0.02191780822 | K152: 1.671142071
A153: 2015-08-30 | B153: 603682.5833 | C153: 1.69 | D153: 0.4493150685 | E153: 0.02191780822 | F153: 1.790012308 | G153: 621629 | H153: 1.91 | I153: 0.4493150685 | J153: 0.02191780822 | K153: 1.91529031
A154: 2015-08-31 | B154: 646080.5833 | C154: 1.74 | D154: 0.4493150685 | E154: 0.02191780822 | F154: 1.711240541 | G154: 660997 | H154: 2.09 | I154: 0.4493150685 | J154: 0.02191780822 | K154: 1.937376418
A155: 2015-09-01 | B155: 710342.0833 | C155: 1.69 | D155: 0.4493150685 | E155: 0.02191780822 | F155: 1.521239065 | G155: 723081 | H155: 2.18 | I155: 0.4493150685 | J155: 0.02191780822 | K155: 1.833266259
A156: 2015-09-02 | B156: 728624.4167 | C156: 1.72 | D156: 0.4493150685 | E156: 0.02191780822 | F156: 1.503656207 | G156: 733141 | H156: 1.27 | I156: 0.4493150685 | J156: 0.02191780822 | K156: 1.187493265
A157: 2015-09-03 | B157: 736380.3333 | C157: 1.8 | D157: 0.4493150685 | E157: 0.02191780822 | F157: 1.54213857 | G157: 740876.5 | H157: 1.99 | I157: 0.4493150685 | J157: 0.02191780822 | K157: 1.6610067
A158: 2015-09-04 | B158: 726801.0833 | C158: 1.93 | D158: 0.4493150685 | E158: 0.02191780822 | F158: 1.651896461 | G158: 726188 | H158: 1.39 | I158: 0.4493150685 | J158: 0.02191780822 | K158: 1.281486337
A159: 2015-09-05 | B159: 628317.9167 | C159: 2.04 | D159: 0.4493150685 | E159: 0.02191780822 | F159: 1.998351153 | G159: 642074 | H159: 1.54 | I159: 0.4493150685 | J159: 0.02191780822 | K159: 1.566174615
A160: 2015-09-06 | B160: 609093.8333 | C160: 1.8 | D160: 0.4493150685 | E160: 0.02191780822 | F160: 1.864408449 | G160: 613598 | H160: 1.32 | I160: 0.4493150685 | J160: 0.02191780822 | K160: 1.459587548
A161: 2015-09-07 | B161: 749788.5833 | C161: 1.75 | D161: 0.4493150685 | E161: 0.02191780822 | F161: 1.481216716 | G161: 739106 | H161: 1.42 | I161: 0.4493150685 | J161: 0.02191780822 | K161: 1.279383471
A162: 2015-09-08 | B162: 774964.25 | C162: 1.28 | D162: 0.4493150685 | E162: 0.02191780822 | F162: 1.129858935 | G162: 764083 | H162: 2.04 | I162: 0.4493150685 | J162: 0.02191780822 | K162: 1.643276974
A163: 2015-09-09 | B163: 757616.9167 | C163: 1.31 | D163: 0.4493150685 | E163: 0.02191780822 | F163: 1.175528004 | G163: 753537 | H163: 1.61 | I163: 0.4493150685 | J163: 0.02191780822 | K163: 1.380954087
A164: 2015-09-10 | B164: 722774.4167 | C164: 1.5 | D164: 0.4493150685 | E164: 0.02191780822 | F164: 1.363635106 | G164: 719438.5 | H164: 1.35 | I164: 0.4493150685 | J164: 0.02191780822 | K164: 1.265710179
A165: 2015-09-11 | B165: 706414.9167 | C165: 1.52 | D165: 0.4493150685 | E165: 0.02191780822 | F165: 1.409369846 | G165: 704461 | H165: 2.17 | I165: 0.4493150685 | J165: 0.02191780822 | K165: 1.874624713
A166: 2015-09-12 | B166: 633111.75 | C166: 2.82 | D166: 0.4493150685 | E166: 0.02191780822 | F166: 2.59922415 | G166: 631888 | H166: 2.59 | I166: 0.4493150685 | J166: 0.02191780822 | K166: 2.422264705
A167: 2015-09-13 | B167: 646094.8333 | C167: 1.38 | D167: 0.4493150685 | E167: 0.02191780822 | F167: 1.43260666 | G167: 638505 | H167: 1.98 | I167: 0.4493150685 | J167: 0.02191780822 | K167: 1.919483794
A168: 2015-09-14 | B168: 761774.5833 | C168: 1.2 | D168: 0.4493150685 | E168: 0.02191780822 | F168: 1.096911818 | G168: 754947.5 | H168: 2.02 | I168: 0.4493150685 | J168: 0.02191780822 | K168: 1.649914961
A169: 2015-09-15 | B169: 764784 | C169: 1.24 | D169: 0.4493150685 | E169: 0.02191780822 | F169: 1.118747254 | G169: 767695 | H169: 2.02 | I169: 0.4493150685 | J169: 0.02191780822 | K169: 1.62251936
A170: 2015-09-16 | B170: 778857.4167 | C170: 0.96 | D170: 0.4493150685 | E170: 0.02191780822 | F170: 0.9187822668 | G170: 781440 | H170: 1.11 | I170: 0.4493150685 | J170: 0.02191780822 | K170: 1.011721949
A171: 2015-09-17 | B171: 753801.25 | C171: 1.4 | D171: 0.4493150685 | E171: 0.02191780822 | F171: 1.241176385 | G171: 763069.5 | H171: 1.02 | I171: 0.4493150685 | J171: 0.02191780822 | K171: 0.9771056391
A172: 2015-09-18 | B172: 748242.9167 | C172: 1.34 | D172: 0.4493150685 | E172: 0.02191780822 | F172: 1.210302001 | G172: 757876 | H172: 1.29 | I172: 0.4493150685 | J172: 0.02191780822 | K172: 1.161931503
A173: 2015-09-19 | B173: 665247.4167 | C173: 1.33 | D173: 0.4493150685 | E173: 0.02191780822 | F173: 1.353782881 | G173: 662531 | H173: 1.29 | I173: 0.4493150685 | J173: 0.02191780822 | K173: 1.329145353
A174: 2015-09-20 | B174: 654864.8333 | C174: 1.22 | D174: 0.4493150685 | E174: 0.02191780822 | F174: 1.291258504 | G174: 652202 | H174: 1.14 | I174: 0.4493150685 | J174: 0.02191780822 | K174: 1.235200137
A175: 2015-09-21 | B175: 784235.75 | C175: 0.83 | D175: 0.4493150685 | E175: 0.02191780822 | F175: 0.8295972131 | G175: 767770 | H175: 1.8 | I175: 0.4493150685 | J175: 0.02191780822 | K175: 1.47908879
A176: 2015-09-22 | B176: 769863 | C176: 0.86 | D176: 0.4493150685 | E176: 0.02191780822 | F176: 0.8645694104 | G176: 770500.5 | H176: 1.36 | I176: 0.4493150685 | J176: 0.02191780822 | K176: 1.188319273
A177: 2015-09-23 | B177: 761708.6667 | C177: 0.93 | D177: 0.4493150685 | E177: 0.02191780822 | F177: 0.9197738244 | G177: 757051 | H177: 1.96 | I177: 0.4493150685 | J177: 0.02191780822 | K177: 1.605704239
A178: 2015-09-24 | B178: 749849.75 | C178: 1.55 | D178: 0.4493150685 | E178: 0.02191780822 | F178: 1.347736214 | G178: 730611 | H178: 1.13 | I178: 0.4493150685 | J178: 0.02191780822 | K178: 1.095795163
A179: 2015-09-25 | B179: 731881.0833 | C179: 2.24 | D179: 0.4493150685 | E179: 0.02191780822 | F179: 1.85221368 | G179: 735184.5 | H179: 1.1 | I179: 0.4493150685 | J179: 0.02191780822 | K179: 1.06857603
A180: 2015-09-26 | B180: 656950.5 | C180: 1.38 | D180: 0.4493150685 | E180: 0.02191780822 | F180: 1.408935231 | G180: 667959.5 | H180: 1.29 | I180: 0.4493150685 | J180: 0.02191780822 | K180: 1.318342416
A181: 2015-09-27 | B181: 646965.75 | C181: 1.2 | D181: 0.4493150685 | E181: 0.02191780822 | F181: 1.291567099 | G181: 645582.5 | H181: 1.19 | I181: 0.4493150685 | J181: 0.02191780822 | K181: 1.286591014
A182: 2015-09-28 | B182: 746391.8333 | C182: 1.1 | D182: 0.4493150685 | E182: 0.02191780822 | F182: 1.052530038 | G182: 743302.5 | H182: 0.91 | I182: 0.4493150685 | J182: 0.02191780822 | K182: 0.9290974597
A183: 2015-09-29 | B183: 758737.5833 | C183: 1.05 | D183: 0.4493150685 | E183: 0.02191780822 | F183: 1.002454075 | G183: 754571 | H183: 0.95 | I183: 0.4493150685 | J183: 0.02191780822 | K183: 0.9417271536
A184: 2015-09-30 | B184: 752154.25 | C184: 0.9 | D184: 0.4493150685 | E184: 0.02191780822 | F184: 0.9115154609 | G184: 750831 | H184: 0.89 | I184: 0.4493150685 | J184: 0.02191780822 | K184: 0.9064623064
A185: 2015-10-01 | B185: 762549.5 | C185: 0.62 | D185: 0.4493150685 | E185: 0.02191780822 | F185: 0.715494066 | G185: 763690 | H185: 2.2 | I185: 0.4493150685 | J185: 0.02191780822 | K185: 1.748877162
A186: 2015-10-02 | B186: 754649.3333 | C186: 0.3 | D186: 0.4493150685 | E186: 0.02191780822 | F186: 0.5109660253 | G186: 752552.5 | H186: 0.56 | I186: 0.4493150685 | J186: 0.02191780822 | K186: 0.6851353793
A187: 2015-10-03 | B187: 692928.9167 | C187: 0.67 | D187: 0.4493150685 | E187: 0.02191780822 | F187: 0.8234609895 | G187: 699693 | H187: 1.31 | I187: 0.4493150685 | J187: 0.02191780822 | K187: 1.272843947
A188: 2015-10-04 | B188: 671717.75 | C188: 0.59 | D188: 0.4493150685 | E188: 0.02191780822 | F188: 0.7899148154 | G188: 669122 | H188: 1.06 | I188: 0.4493150685 | J188: 0.02191780822 | K188: 1.144185963
A189: 2015-10-05 | B189: 771975 | C189: 0.43 | D189: 0.4493150685 | E189: 0.02191780822 | F189: 0.5836976586 | G189: 777925 | H189: 3.07 | I189: 0.4493150685 | J189: 0.02191780822 | K189: 2.27605489
A190: 2015-10-06 | B190: 784485.5 | C190: 0.89 | D190: 0.4493150685 | E190: 0.02191780822 | F190: 0.8675744373 | G190: 796726 | H190: 2.8 | I190: 0.4493150685 | J190: 0.02191780822 | K190: 2.052901499
A191: 2015-10-07 | B191: 791322.3333 | C191: 1.08 | D191: 0.4493150685 | E191: 0.02191780822 | F191: 0.9801319817 | G191: 790266.5 | H191: 1.26 | I191: 0.4493150685 | J191: 0.02191780822 | K191: 1.095327396
A192: 2015-10-08 | B192: 799331 | C192: 1.47 | D192: 0.4493150685 | E192: 0.02191780822 | F192: 1.214265429 | G192: 797514 | H192: 1.09 | I192: 0.4493150685 | J192: 0.02191780822 | K192: 0.9787915949
A193: 2015-10-09 | B193: 782601.5833 | C193: 0.74 | D193: 0.4493150685 | E193: 0.02191780822 | F193: 0.7738288428 | G193: 781685.5 | H193: 1.09 | I193: 0.4493150685 | J193: 0.02191780822 | K193: 0.9986106953
A194: 2015-10-10 | B194: 705750.4167 | C194: 0.87 | D194: =internal_BSUoS_cost_per_year/days_per_year -> 0.4493150685 | E194: =forecast_BSIS_profit_per_year/days_per_year -> 0.02191780822 | F194: 0.9501948282 | G194: 708640.5 | H194: 1.3 | I194: =internal_BSUoS_cost_per_year/days_per_year -> 0.4493150685 | J194: =forecast_BSIS_profit_per_year/days_per_year -> 0.02191780822 | K194: 1.249717769
A195: 2015-10-11 | B195: 682022.0833 | C195: 0.9 | D195: 0.4493150685 | E195: 0.02191780822 | F195: =BSUoS_per_SP(B195,C195,D195,E195) -> 1.005246165 | G195: 678742.5 | H195: 0.91 | I195: 0.4493150685 | J195: 0.02191780822 | K195: =BSUoS_per_SP(G195,H195,I195,J195) -> 1.017470556
A196: 2015-10-12 | B196: 801447.1667 | C196: 0.9 | D196: 0.4493150685 | E196: 0.02191780822 | F196: 0.8554526999 | G196: 788727 | H196: 0.9 | I196: 0.4493150685 | J196: 0.02191780822 | K196: 0.8692488022
A197: 2015-10-13 | B197: 822785.5 | C197: 0.81 | D197: 0.4493150685 | E197: 0.02191780822 | F197: 0.7785742587 | G197: 819143.5 | H197: 1.56 | I197: 0.4493150685 | J197: 0.02191780822 | K197: 1.239830848
A198: 2015-10-14 | B198: 823429.5833 | C198: 1.32 | D198: 0.4493150685 | E198: 0.02191780822 | F198: 1.08764558 | G198: 819436 | H198: 1.19 | I198: 0.4493150685 | J198: 0.02191780822 | K198: 1.013624005
A199: 2015-10-15 | B199: 831258 | C199: 0.45 | D199: 0.4493150685 | E199: 0.02191780822 | F199: 0.5540999305 | G199: 840503 | H199: 2.01 | I199: 0.4493150685 | J199: 0.02191780822 | K199: 1.476020907
A200: 2015-10-16 | B200: 814272.5833 | C200: 1.25 | D200: 0.4493150685 | E200: 0.02191780822 | F200: 1.056893695 | G200: 826605 | H200: 2.19 | I200: 0.4493150685 | J200: 0.02191780822 | K200: 1.609716854
... 1083 more rows

Sheet Constants
B1: Constants:
B3: Constant | C3: Value | D3: Comment
G4: =IF(B4="","",B4&" = Range("&B4&")") -> 
B5: internal_BSUoS_cost_per_year | C5: 164 | D5: £, millions
B6: forecast_BSIS_profit_per_year | C6: 8 | D6: £, millions
B7: black_start_contract_costs_per_day | C7: 0.123 | D7: £, millions
B8: days_per_year | C8: 365
B9: hours_per_SP | C9: 0.5
B11: DA_report_dir | C11: S:\OandT\OptRisk\Balancing Services\Commercial Strategy - Prompt\Commercial Strategy Report (Day Ahead)\
B13: forecast_values_wkst | C13: F-Values | D13: Name of worksheet
B14: forecast_values_date_col | C14: 1 | D14: Date is in column XX
B15: forecast_values_totals_col | C15: 30 | D15: "Overall" cost for each day is in column XX
B17: outturn_values_wkst | C17: O-Values | D17: Name of worksheet
B18: outturn_values_date_col | C18: 1 | D18: Date is in column XX
B19: outturn_values_totals_col | C19: 30 | D19: "Overall" cost for each day is in column XX
B21: inputs_wkst | C21: Inputs | D21: Name of worksheet
B23: report_wkst | C23: Report | D23: Name of worksheet
B25: data_wkst | C25: Data | D25: Name of worksheet
B26: data_date_col | C26: 1
B27: data_forecast_demand_col | C27: 2
B28: data_forecast_ext_col | C28: 3
B29: data_forecast_int_col | C29: 4
B30: data_forecast_BSIS_col | C30: 5
B31: data_forecast_BSUoS_col | C31: 6
B32: data_outturn_demand_col | C32: 7
B33: data_outturn_ext_col | C33: 8
B34: data_outturn_int_col | C34: 9
B35: data_outturn_BSIS_col | C35: 10
B36: data_outturn_BSUoS_col | C36: 11

Sheet Version Control
B1: Version Control:
B3: Version | C3: Date Implemented | D3: Change | E3: Implementor | F3: Trading Database Change & Failure Risk Register Updated
B4: 1 | C4: 2015-05-12 | D4: Created | E4: Robert Westmancoat | F4: Yes
B5: 2.1 | C5: 2017-08-23 | D5: BSUoS Internal and BSIS updated on the "Constants" sheet to current data, black start costs included | E5: Zoe Carlin | F5: No
